bitfinex/quotes_SOLUSD_20250616
["timestamp","ask_amount","ask_price","bid_price","bid_amount"]
[1750090866418,0.28432314,157.97,157.94,6.33151829]
[1750090866913,8.75552611,157.97,157.94,6.33151829]
[1750090867386,8.47120297,157.99,157.95,8.47120297]
[1750090867586,8.47120297,158.01,157.97,8.47120297]
[1750090867789,8.47120297,158.02,157.97,8.47120297]
[1750090868004,8.47120297,158.02,157.98,8.47120297]
[1750090868284,8.47120297,158.02,157.94,110.96031403]
[1750090868285,0.28432314,158.01,157.99,6.32951452]
[1750090868487,8.47120297,158.02,157.99,6.32951452]
[1750090868902,8.61336454,158.01,157.99,6.32951452]
[1750090869419,0.28432314,158.01,157.98,6.32991517]
[1750090870312,10.08570297,158.05,158.0,8.47120297]
[1750090870489,10.08570297,158.05,158.01,8.47120297]
[1750090870691,1.6145,158.05,158.01,8.47120297]
[1750090870892,10.08570297,158.05,158.01,8.47120297]
[1750090871210,0.28432314,158.04,158.0,8.47120297]
[1750090871390,0.28432314,158.04,158.01,6.32871337]
[1750090871795,0.14216157,158.04,158.01,6.32871337]
[1750090872207,0.28432314,158.04,158.01,6.32871337]
[1750090872613,8.75552611,158.04,158.01,6.32871337]
[1750090875313,0.28432314,158.04,158.01,6.32871337]
[1750090875510,0.28432314,158.04,158.01,14.79991634]
[1750090875709,0.28432314,158.06,158.02,8.47120297]
[1750090875907,2.64274232,158.06,158.02,8.47120297]
[1750090876109,0.28432314,158.06,158.02,8.47120297]
[1750090876918,0.28432314,158.06,158.01,6.32871337]
[1750090876919,0.28432314,158.06,158.03,8.47120297]
[1750090877099,13.18502448,158.07,158.03,8.47120297]
[1750090877295,15.54681311,158.08,158.04,8.47120297]
[1750090877500,15.54681311,158.08,157.99,53.80087346]
[1750090877698,15.54681311,158.08,158.03,8.47120297]
[1750090877903,13.18502448,158.08,158.03,8.47120297]
[1750090878325,4.71382151,158.08,158.03,8.47120297]
[1750090878618,8.47120297,158.08,158.04,8.47120297]
[1750090878817,8.47120297,158.08,158.05,6.32711167]
[1750090879895,8.47120297,158.07,158.05,6.32711167]
[1750090881223,8.47120297,158.08,158.04,6.32751202]
[1750090884200,8.47120297,158.07,158.04,6.32751202]
[1750090885607,8.47120297,158.07,158.03,6.32791242]
[1750090886118,0.28432314,158.08,158.03,6.32791242]
[1750090886317,8.47120297,158.07,158.03,6.32791242]
[1750090887426,0.28432314,158.08,158.03,6.32791242]
[1750090887630,8.47120297,158.07,158.03,6.32791242]
[1750090890223,8.47120297,158.06,158.01,6.32871337]
[1750090890537,8.47120297,158.06,158.02,8.47120297]
[1750090890922,8.47120297,158.07,158.01,6.32871337]
[1750090891113,8.47120297,158.07,158.02,8.47120297]
[1750090891522,8.47120297,158.06,158.02,8.47120297]
[1750090891830,8.47120297,158.06,158.01,95.12871337]
[1750090892013,6.61025221,158.08,158.01,95.12871337]
[1750090892014,8.47120297,158.05,158.01,103.59991634]
[1750090893413,8.47120297,158.05,158.01,95.12871337]
[1750090893635,8.47120297,158.05,158.01,103.59991634]
[1750090896827,8.47120297,158.05,158.01,14.79991634]
[1750090897441,8.47120297,158.06,158.03,6.32791242]
[1750090898125,8.47120297,158.05,158.03,6.32791242]
[1750090898329,8.47120297,158.06,158.03,6.32791242]
[1750090898937,4.99814465,158.08,158.03,6.32791242]
[1750090899131,8.47120297,158.06,158.03,6.32791242]
[1750090901635,4.71382151,158.07,158.03,6.32791242]
[1750090901939,8.47120297,158.06,158.03,6.32791242]
[1750090902639,8.47120297,158.06,158.01,22.1504968]
[1750090902944,8.47120297,158.06,158.02,8.47120297]
[1750090904132,8.47120297,158.06,158.01,22.1504968]
[1750090904446,8.47120297,158.06,158.02,8.47120297]
[1750090904946,8.47120297,158.06,158.03,6.32791242]
[1750090906243,8.47120297,158.06,158.01,22.1504968]
[1750090906461,8.47120297,158.06,158.02,8.47120297]
[1750090908339,8.47120297,158.06,158.03,6.32791242]
[1750090908562,13.18502448,158.06,158.03,6.32791242]
[1750090908857,8.47120297,158.06,158.03,6.32791242]
[1750090909159,13.18502448,158.06,158.03,6.32791242]
[1750090909363,8.47120297,158.06,158.03,6.32791242]
[1750090909663,13.18502448,158.06,158.02,6.32831287]
[1750090909958,8.47120297,158.06,158.02,6.32831287]
[1750090910132,13.18502448,158.06,158.02,6.32831287]
[1750090910335,8.47120297,158.06,158.02,14.79951584]
[1750090910542,4.71382151,158.05,158.02,14.79951584]
[1750090910736,8.47120297,158.06,158.02,14.79951584]
[1750090910948,10.83609913,158.06,158.02,14.79951584]
[1750090911148,8.47120297,158.06,158.02,14.79951584]
[1750090911344,10.83609913,158.06,158.02,6.32831287]
[1750090911550,7.09394405,158.05,158.02,6.32831287]
[1750090911839,2.36533001,158.05,158.02,6.32831287]
[1750090912035,2.36533001,158.05,158.0,100.6059]
[1750090912036,8.47120297,158.03,158.0,94.4]
[1750090912250,8.47120297,158.03,158.0,11.92894586]
[1750090915165,8.47120297,158.01,158.0,5.6]
[1750090915340,4.7381357,158.01,158.0,11.92911392]
[1750090915959,2.36889745,158.03,158.0,20.40031689]
[1750090916152,2.36878329,158.04,158.01,8.47120297]
[1750090916353,4.7373551,158.03,158.01,8.47120297]
[1750090916555,2.36876416,158.05,158.01,8.47120297]
[1750090916757,7.10685208,158.04,158.01,8.47120297]
[1750090916957,4.73762811,158.03,158.02,6.32831287]
[1750090917861,1.93852314,158.08,158.02,6.32831287]
[1750090917862,10.84035858,158.06,158.02,6.32831287]
[1750090918163,7.10693096,158.05,158.02,6.32831287]
[1750090918368,7.10693096,158.04,158.02,6.32831287]
[1750090918661,8.47120297,158.06,158.02,6.32831287]
[1750090918865,7.10723473,158.05,158.02,6.32831287]
[1750090919033,7.10723473,158.04,158.02,6.32831287]
[1750090919236,8.47120297,158.06,158.02,6.32831287]
[1750090919437,7.10723257,158.05,158.02,6.32831287]
[1750090919650,7.10723257,158.04,158.02,6.32831287]
[1750090919874,8.47120297,158.06,158.02,14.79951584]
[1750090920163,7.10806454,158.05,158.02,14.79951584]
[1750090920336,8.47120297,158.07,158.02,14.79951584]
[1750090920538,7.10791539,158.06,158.03,8.47120297]
[1750090920775,4.73824976,158.05,158.03,8.47120297]
[1750090920966,8.47120297,158.07,158.04,6.32751202]
[1750090921151,7.10800926,158.06,158.04,14.79871499]
[1750090921338,14.3516542,158.09,158.04,14.79871499]
[1750090921339,4.73840521,158.05,158.04,14.79871499]
[1750090922440,2.36943779,158.08,158.04,30.61749504]
[1750090922641,7.10714424,158.07,158.05,8.47120297]
[1750090922857,9.77768917,158.1,158.05,8.47120297]
[1750090923045,7.10693581,158.09,158.06,6.32671137]
[1750090923246,7.10693581,158.08,158.06,6.32671137]
[1750090923460,4.73757538,158.07,158.06,6.32671137]
[1750090923654,7.10693502,158.07,158.06,6.32671137]
[1750090924642,4.73757538,158.07,158.06,6.32671137]
[1750090924844,8.61928288,158.17,158.15,26.0]
[1750090925052,16.7015147,158.28,158.2,6.32111251]
[1750090925240,5.66264754,158.27,158.26,8.47120297]
[1750090925443,2.74703389,158.33,158.27,6.0476]
[1750090925663,2.74703389,158.33,158.3,26.0]
[1750090925848,2.74703389,158.33,158.27,6.0476]
[1750090925849,2.24703389,158.33,158.27,6.0476]
[1750090926168,2.24703389,158.33,158.27,32.0476]
[1750090926573,8.47120297,158.32,158.2,115.20387806]
[1750090926778,8.47120297,158.24,158.2,115.20387806]
[1750090927072,8.47120297,158.21,158.2,115.20387806]
[1750090927246,0.14216157,158.28,158.2,115.20387806]
[1750090927247,6.31751847,158.29,158.2,115.20387806]
[1750090927440,8.47120297,158.25,158.2,115.20387806]
[1750090927640,8.75552611,158.21,158.2,115.20387806]
[1750090928470,0.28432314,158.2,158.14,8.47120297]
[1750090928682,8.47120297,158.19,158.13,8.47120297]
[1750090928846,8.47120297,158.19,158.13,12.59883814]
[1750090928847,12.59883814,158.19,158.13,12.59883814]
[1750090929348,12.59883814,158.15,158.1,5.58]
[1750090929551,12.59883814,158.15,158.1,18.17883814]
[1750090929948,12.59883814,158.16,158.11,12.59883814]
[1750090930150,0.28432314,158.18,158.11,12.59883814]
[1750090930352,12.59883814,158.15,158.1,18.17883814]
[1750090930575,12.59883814,158.16,158.11,12.59883814]
[1750090931065,0.28432314,158.18,158.12,12.59883814]
[1750090931066,12.59883814,158.17,158.12,12.59883814]
[1750090931456,12.59883814,158.17,158.1,5.58]
[1750090931457,6.3223673,158.17,158.13,12.59883814]
[1750090932264,45.34512558,158.18,158.13,12.59883814]
[1750090932572,12.59883814,158.17,158.12,12.59883814]
[1750090932744,32.74628744,158.18,158.1,5.58]
[1750090932949,12.59883814,158.15,158.1,18.17883814]
[1750090933172,12.59883814,158.14,158.1,5.58]
[1750090933760,12.59883814,158.13,158.1,5.58]
[1750090933980,12.59883814,158.13,158.09,12.59883814]
[1750090934558,12.59883814,158.13,158.08,12.59883814]
[1750090935075,12.59883814,158.11,158.07,88.06121938]
[1750090935449,12.59883814,158.11,158.07,94.38742874]
[1750090936351,12.59883814,158.11,158.07,88.06121938]
[1750090936878,12.59883814,158.1,158.07,88.06121938]
[1750090937080,12.59883814,158.09,158.07,88.06121938]
[1750090938077,12.59883814,158.08,158.07,88.06121938]
[1750090938377,12.59883814,158.08,158.02,12.59883814]
[1750090938378,12.88316128,158.08,158.02,6.32825524]
[1750090938581,12.88316128,158.08,157.99,6.0083]
[1750090938582,12.88316128,158.08,158.01,12.59883814]
[1750090939063,12.88316128,158.08,158.02,6.32831287]
[1750090939267,12.59883814,158.06,158.02,6.32831287]
[1750090939758,12.59883814,158.06,158.02,18.92715101]
[1750090941959,12.59883814,158.05,158.02,6.32831287]
[1750090942660,12.59883814,158.04,158.02,6.32831287]
[1750090943067,12.59883814,158.04,157.99,38.59883814]
[1750090943068,12.59883814,158.04,158.0,6.32911392]
[1750090943267,12.59883814,158.03,158.0,6.32911392]
[1750090943468,12.59883814,158.02,158.0,6.32911392]
[1750090943977,12.59883814,158.03,158.0,6.32911392]
[1750090944473,12.59883814,158.03,157.99,6.32951452]
[1750090945070,12.59883814,158.02,157.99,6.32951452]
[1750090945676,6.61145319,158.05,157.97,6.33031588]
[1750090945878,12.59883814,157.98,157.92,12.59883814]
[1750090946179,12.59883814,157.98,157.93,12.59883814]
[1750090946376,12.59883814,157.98,157.94,6.33151829]
[1750090947049,12.59883814,157.98,157.94,18.93035643]
[1750090947255,26.12,158.0,157.94,6.33151829]
[1750090947480,12.59883814,157.98,157.94,6.33151829]
[1750090947685,12.59883814,157.98,157.94,18.93035643]
[1750090948266,12.59883814,157.99,157.94,18.93035643]
[1750090948673,12.59883814,157.98,157.94,6.33151829]
[1750090949074,12.59883814,157.97,157.94,6.33151829]
[1750090949270,14.6920136,158.0,157.94,6.33151829]
[1750090949472,12.59883814,157.97,157.94,6.33151829]
[1750090949658,12.59883814,157.98,157.94,6.33151829]
[1750090950089,12.59883814,157.97,157.94,6.33151829]
[1750090950268,12.59883814,157.96,157.94,6.33151829]
[1750090950585,12.59883814,157.97,157.94,6.33151829]
[1750090951161,12.59883814,157.96,157.92,34.7619587]
[1750090952289,0.28432314,158.0,157.93,12.59883814]
[1750090952475,12.59883814,157.97,157.93,12.59883814]
[1750090952786,12.59883814,157.97,157.92,18.9311583]
[1750090954066,12.59883814,157.96,157.92,6.33232016]
[1750090954282,12.59883814,157.97,157.92,18.9311583]
[1750090954683,12.59883814,157.98,157.93,12.59883814]
[1750090954876,14.22913814,158.0,157.95,12.59883814]
[1750090955083,1.6303,158.0,157.95,12.59883814]
[1750090955391,14.22913814,158.0,157.95,12.59883814]
[1750090955887,14.22913814,158.0,157.96,6.33071663]
[1750090956082,14.22913814,158.0,157.96,18.92955477]
[1750090956470,14.22913814,158.0,157.96,6.33071663]
[1750090956672,12.59883814,158.0,157.96,18.92955477]
[1750090957083,12.59883814,158.02,157.98,12.59883814]
[1750090957597,12.59883814,158.02,157.96,22.15750822]
[1750090957882,12.59883814,158.02,157.98,12.59883814]
[1750090958267,0.28432314,158.03,157.98,12.59883814]
[1750090958589,11.13403303,158.05,157.96,22.15750822]
[1750090958787,12.59883814,158.02,157.98,12.59883814]
[1750090958985,12.59883814,158.02,157.96,15.82679159]
[1750090959173,12.59883814,158.01,157.96,28.42562973]
[1750090959362,12.59883814,158.01,157.96,15.82679159]
[1750090959564,12.59883814,158.01,157.96,28.42562973]
[1750090959783,12.59883814,158.01,157.96,15.82679159]
[1750090959962,12.59883814,158.01,157.96,28.42562973]
[1750090960362,1.5051,158.05,157.96,34.75634636]
[1750090960588,12.59883814,158.01,157.96,34.75634636]
[1750090961187,12.59883814,158.01,157.97,12.59883814]
[1750090961374,12.59883814,158.03,157.98,12.59883814]
[1750090961573,12.59883814,158.02,157.96,22.15750822]
[1750090961773,12.59883814,158.01,157.97,12.59883814]
[1750090962180,0.28432314,158.04,157.97,12.59883814]
[1750090962491,12.59883814,158.02,157.98,6.32991517]
[1750090963467,12.59883814,158.01,157.98,6.32991517]
[1750090964077,12.59883814,158.01,157.97,6.33028327]
[1750090964788,6.32793298,158.03,157.97,6.33028327]
[1750090964983,8.41750373,158.01,157.97,6.33028327]
[1750090965180,0.28432314,158.02,157.97,14.747787]
[1750090965388,8.41750373,158.02,157.97,14.747787]
[1750090965567,8.70182687,158.01,157.97,6.33028327]
[1750090965768,8.41750373,158.0,157.97,6.33028327]
[1750090965988,0.28432314,158.01,157.97,14.747787]
[1750090966179,0.28432314,158.01,157.97,6.33028327]
[1750090966378,0.28432314,158.01,157.96,14.74806009]
[1750090967066,0.14216157,158.04,157.99,8.41750373]
[1750090967288,1.6309,158.09,158.03,8.41750373]
[1750090967461,1.6309,158.14,158.06,8.41750373]
[1750090967666,1.6309,158.14,158.11,8.41750373]
[1750090967881,8.41750373,158.13,158.08,8.41750373]
[1750090968797,8.41750373,158.12,158.09,6.32551078]
[1750090968994,8.41750373,158.13,158.09,8.41750373]
[1750090969295,8.41750373,158.13,158.08,8.41750373]
[1750090969484,0.28432314,158.12,158.08,8.41750373]
[1750090970203,0.42648471,158.12,158.09,8.41750373]
[1750090970570,0.14216157,158.12,158.09,8.41750373]
[1750090970770,0.14216157,158.12,158.09,12.60747895]
[1750090971480,0.42648471,158.13,158.09,12.60747895]
[1750090971799,6.75045484,158.13,158.09,12.60747895]
[1750090971984,6.7504323,158.13,158.08,6.32576819]
[1750090972188,6.7504323,158.13,158.09,12.60747895]
[1750090972385,19.35791125,158.13,158.09,12.60747895]
[1750090973892,6.7504323,158.13,158.09,12.60747895]
[1750090974292,6.7504323,158.13,158.05,15.81708054]
[1750090974293,0.42648471,158.13,158.1,12.60747895]
[1750090974618,1.6309,158.14,158.12,12.60747895]
[1750090975509,1.6309,158.14,158.05,22.14419221]
[1750090975681,1.6309,158.14,158.12,12.60747895]
[1750090977195,1.6309,158.14,158.11,6.32464317]
[1750090977393,1.6309,158.14,158.12,12.60747895]
[1750090979219,1.6309,158.14,158.11,18.93212212]
[1750090979402,1.6309,158.14,158.11,12.60747895]
[1750090979599,1.6309,158.14,158.11,18.93210524]
[1750090980314,1.6309,158.14,158.07,104.61564145]
[1750090980517,1.6309,158.14,158.1,12.60747895]
[1750090980518,0.28432314,158.13,158.1,12.60747895]
[1750090980846,0.28432314,158.13,158.09,12.60747895]
[1750090981005,0.28432314,158.13,158.09,18.93290466]
[1750090982198,0.28432314,158.13,158.1,12.60747895]
[1750090982714,1.6309,158.14,158.11,12.60747895]
[1750090983118,1.6309,158.14,158.11,18.93216167]
[1750090983490,1.6309,158.14,158.12,12.60747895]
[1750090983899,0.28432314,158.13,158.07,6.32631112]
[1750090984094,0.28432314,158.13,158.1,12.60747895]
[1750090984596,0.28432314,158.13,158.09,12.60747895]
[1750090985233,1.6309,158.14,158.12,12.60747895]
[1750090985516,1.6309,158.14,158.11,12.60747895]
[1750090985712,1.6309,158.14,158.1,12.60747895]
[1750090987211,0.28432314,158.13,158.1,12.60747895]
[1750090988306,0.28432314,158.13,158.09,6.32527201]
[1750090988505,0.28432314,158.13,158.1,12.60747895]
[1750090989296,0.28432314,158.13,158.1,18.93258638]
[1750090990628,0.28432314,158.13,158.1,12.60747895]
[1750090990926,0.28432314,158.13,158.09,14.7290119]
[1750090991517,6.60827121,158.13,158.09,14.7290119]
[1750090991700,0.28432314,158.13,158.09,14.7290119]
[1750090992432,0.28432314,158.13,158.09,6.32540526]
[1750090993636,0.28432314,158.13,158.07,22.14208893]
[1750090994498,0.28432314,158.13,158.12,8.40360664]
[1750090994703,0.14216157,158.16,158.12,8.40360664]
[1750090995244,0.28432314,158.16,158.12,8.40360664]
[1750090995538,0.42648471,158.16,158.12,8.40360664]
[1750090995728,6.74921229,158.16,158.12,8.40360664]
[1750090995914,0.42648471,158.16,158.12,14.7279045]
[1750090996499,0.42648471,158.16,158.12,6.32429786]
[1750090996703,6.74926238,158.16,158.12,8.40360664]
[1750090997706,15.15286902,158.16,158.11,8.40360664]
[1750090998912,15.15286902,158.16,158.11,14.72829372]
[1750090999327,8.40360664,158.15,158.1,8.40360664]
[1750090999536,8.68792978,158.13,158.08,6.32591093]
[1750090999726,8.68792978,158.13,158.09,8.40360664]
[1750090999929,0.28432314,158.13,158.09,8.40360664]
[1750091000722,0.28432314,158.13,158.09,14.72899191]
[1750091001318,0.28432314,158.13,158.1,8.40360664]
[1750091003444,0.28432314,158.13,158.1,14.72864651]
[1750091003630,8.40360664,158.16,158.11,8.40360664]
[1750091003815,25.98,158.16,158.12,8.40360664]
[1750091004010,34.38360664,158.16,158.12,8.40360664]
[1750091004442,34.38360664,158.16,158.1,6.32503987]
[1750091004636,8.40360664,158.16,158.12,8.40360664]
[1750091004822,14.72648433,158.16,158.12,8.40360664]
[1750091005237,8.40360664,158.16,158.12,14.72785888]
[1750091006018,0.28432314,158.16,158.12,14.72785888]
[1750091006220,8.68792978,158.16,158.12,14.72785888]
[1750091006742,8.68792978,158.16,158.12,8.40360664]
[1750091007244,15.01075385,158.16,158.12,8.40360664]
[1750091007539,15.01075385,158.16,158.11,6.32447154]
[1750091007838,8.68792978,158.16,158.12,8.40360664]
[1750091008541,61.60142987,158.17,158.15,8.40360664]
[1750091008542,3.29898565,158.17,158.15,8.40360664]
[1750091008836,1.5424,158.18,158.16,8.40360664]
[1750091009329,1.5424,158.18,158.15,8.40360664]
[1750091009530,0.28432314,158.18,158.15,8.40360664]
[1750091011138,0.28432314,158.18,158.14,14.72701257]
[1750091012130,15.00987011,158.18,158.14,8.40360664]
[1750091012336,8.40360664,158.15,158.11,8.40360664]
[1750091012538,8.40360664,158.15,158.1,6.32511068]
[1750091012847,8.40360664,158.15,158.11,8.40360664]
[1750091013049,8.40360664,158.16,158.12,8.40360664]
[1750091014548,0.28432314,158.16,158.12,8.40360664]
[1750091014750,0.28432314,158.16,158.12,14.72768478]
[1750091014931,0.28432314,158.16,158.13,8.40360664]
[1750091015133,8.40360664,158.18,158.13,8.40360664]
[1750091015532,8.40360664,158.17,158.13,8.40360664]
[1750091016252,8.40360664,158.17,158.12,14.72768478]
[1750091016637,14.72594227,158.17,158.12,14.72768478]
[1750091017033,8.83009135,158.16,158.09,12.57577211]
[1750091017240,8.40360664,158.14,158.1,8.40360664]
[1750091017757,8.40360664,158.15,158.1,8.40360664]
[1750091018055,14.72687328,158.15,158.1,14.72860496]
[1750091019356,14.72687328,158.15,158.11,8.40360664]
[1750091020558,14.72687328,158.15,158.08,6.32591093]
[1750091020863,14.72687328,158.15,158.1,14.72856709]
[1750091023435,14.72687328,158.15,158.11,8.40360664]
[1750091024855,6.32326664,158.15,158.1,6.32503229]
[1750091025162,0.42648471,158.16,158.11,8.40360664]
[1750091025163,15.1529844,158.16,158.11,8.40360664]
[1750091025335,8.40360664,158.15,158.11,8.40360664]
[1750091025536,6.74937776,158.16,158.11,8.40360664]
[1750091025737,0.28432314,158.16,158.13,8.40360664]
[1750091025960,0.28432314,158.16,158.12,8.40360664]
[1750091026337,18.79181043,158.19,158.14,8.40360664]
[1750091026643,0.28432314,158.19,158.15,8.40360664]
[1750091026855,0.42648471,158.19,158.15,8.40360664]
[1750091027054,8.83009135,158.19,158.14,14.72711411]
[1750091028160,15.15195122,158.19,158.14,14.72711411]
[1750091028458,8.40360664,158.17,158.13,6.32377817]
[1750091028649,8.40360664,158.16,158.12,14.72775949]
[1750091029352,8.40360664,158.15,158.11,6.32454282]
[1750091029558,8.40360664,158.12,158.07,8.40360664]
[1750091030143,8.40360664,158.12,158.07,14.72961183]
[1750091031154,8.40360664,158.12,158.08,8.40360664]
[1750091031559,0.28432314,158.11,158.07,6.32600519]
[1750091031749,0.28432314,158.07,158.0,5.00243044]
[1750091031945,9.94030664,158.09,158.05,8.40360664]
[1750091032345,9.94030664,158.09,158.05,14.73063725]
[1750091032658,1.5367,158.09,158.05,14.73063725]
[1750091035055,0.28432314,158.1,158.07,8.40360664]
[1750091035262,0.28432314,158.1,158.08,8.40360664]
[1750091035866,0.28432314,158.1,158.07,8.40360664]
[1750091036847,0.28432314,158.1,158.06,8.40360664]
[1750091037774,0.28432314,158.1,158.01,136.9504968]
[1750091037963,0.28432314,158.1,158.06,8.40360664]
[1750091038265,8.40360664,158.08,158.01,48.1504968]
[1750091038470,0.28432314,158.07,158.04,8.40360664]
[1750091039163,0.28432314,158.07,158.05,6.32711167]
[1750091039674,0.28432314,158.07,158.05,14.73071831]
[1750091040051,0.28432314,158.1,158.06,8.40360664]
[1750091040351,8.68792978,158.1,158.06,8.40360664]
[1750091040545,8.68792978,158.1,158.05,14.73071831]
[1750091040746,8.40360664,158.09,158.05,14.73071831]
[1750091041256,0.28432314,158.08,158.05,14.73071831]
[1750091041460,8.40360664,158.07,158.02,6.32831287]
[1750091041764,0.42648471,158.11,158.06,8.40360664]
[1750091041951,0.28432314,158.09,158.06,8.40360664]
[1750091042140,0.28432314,158.09,158.05,8.40360664]
[1750091042667,4.72481089,158.08,158.05,8.40360664]
[1750091042869,0.28432314,158.09,158.05,8.40360664]
[1750091043070,4.72474372,158.08,158.05,8.40360664]
[1750091043246,0.28432314,158.09,158.06,6.32671137]
[1750091043447,4.72474229,158.08,158.06,6.32671137]
[1750091043647,0.28432314,158.09,158.06,6.32671137]
[1750091044248,0.28432314,158.1,158.07,8.40360664]
[1750091044448,4.72305094,158.09,158.07,8.40360664]
[1750091044658,0.28432314,158.1,158.07,8.40360664]
[1750091044852,4.72304194,158.09,158.07,8.40360664]
[1750091045069,0.28432314,158.1,158.07,8.40360664]
[1750091045258,4.72308598,158.09,158.06,14.73017539]
[1750091045558,8.68792978,158.1,158.06,14.73017539]
[1750091045746,4.72328531,158.09,158.06,14.73017539]
[1750091045955,8.68792978,158.1,158.06,14.73017539]
[1750091045956,8.68792978,158.1,158.06,6.32656875]
[1750091046152,0.28432314,158.08,158.05,6.3270046]
[1750091046550,0.28432314,158.08,158.05,14.73061124]
[1750091048470,0.28432314,158.09,158.05,14.73061124]
[1750091048674,8.68792978,158.07,158.02,8.40360664]
[1750091048870,8.40360664,158.03,157.96,35.40349834]
[1750091049075,8.40360664,158.03,157.98,8.40360664]
[1750091049251,39.6741,158.1,158.02,8.40360664]
[1750091049453,4.72208358,158.09,158.08,14.72951757]
[1750091049874,4.72034364,158.12,158.08,14.72951757]
[1750091050049,4.72034364,158.11,158.08,6.32591093]
[1750091050257,0.42648471,158.12,158.08,14.72951757]
[1750091050575,0.28432314,158.1,158.08,14.72951757]
[1750091050772,4.72012497,158.11,158.08,14.72951757]
[1750091050773,1.6055,158.18,158.09,8.40360664]
[1750091050972,4.719734,158.15,158.12,8.40360664]
[1750091051165,4.719734,158.14,158.12,8.40360664]
[1750091051365,8.40360664,158.17,158.12,8.40360664]
[1750091051567,0.28432314,158.15,158.12,8.40360664]
[1750091051767,0.28432314,158.15,158.13,6.3239107]
[1750091051986,0.28432314,158.15,158.12,14.72778037]
[1750091053664,0.28432314,158.16,158.12,8.40360664]
[1750091053863,4.71931582,158.15,158.12,8.40360664]
[1750091054167,4.71948846,158.14,158.11,14.72820136]
[1750091054683,0.28432314,158.13,158.09,14.72911742]
[1750091056886,8.83009135,158.13,158.09,8.40360664]
[1750091057086,8.83009135,158.13,158.09,14.7290346]
[1750091057281,8.83009135,158.13,158.09,6.32542796]
[1750091057588,8.83009135,158.13,158.09,14.7290346]
[1750091057900,8.83009135,158.13,158.08,14.72945297]
[1750091058073,0.42648471,158.13,158.08,14.72945297]
[1750091058271,0.28432314,158.11,158.08,14.72945297]
[1750091058788,0.28432314,158.11,158.08,6.32584633]
[1750091059171,8.68792978,158.11,158.06,6.32671137]
[1750091059374,8.68792978,158.11,158.06,14.73031801]
[1750091059668,0.28432314,158.08,158.03,5.6]
[1750091059876,0.28432314,158.08,158.04,14.73111866]
[1750091060488,0.28432314,158.08,158.05,8.40360664]
[1750091061891,0.28432314,158.08,158.05,14.73043333]
[1750091062591,0.28432314,158.08,158.07,26.0]
[1750091062765,8.54576821,158.08,158.04,6.32740425]
[1750091063094,8.68792978,158.06,158.05,26.0]
[1750091063270,8.40360664,158.06,158.02,8.40360664]
[1750091063466,0.28432314,158.06,158.05,26.0]
[1750091064389,0.28432314,158.06,158.05,32.32711167]
[1750091065786,0.28432314,158.06,158.05,6.32711167]
[1750091066666,0.14216157,158.09,158.05,14.73071831]
[1750091066989,8.54576821,158.09,158.05,6.32711167]
[1750091067163,0.14216157,158.08,158.05,6.32711167]
[1750091069870,0.28432314,158.07,158.05,6.32711167]
[1750091071296,8.68792978,158.07,158.05,6.32711167]
[1750091071671,0.28432314,158.05,158.01,6.32871337]
[1750091071887,8.40360664,158.05,158.01,14.73232001]
[1750091072199,0.28432314,158.05,158.01,14.73232001]
[1750091072396,0.28432314,158.05,158.02,8.40360664]
[1750091072597,0.28432314,158.05,158.03,6.32791242]
[1750091074190,8.40360664,158.07,158.03,6.32791242]
[1750091074191,8.68792978,158.09,158.04,8.40360664]
[1750091074371,8.54576821,158.1,158.05,8.40360664]
[1750091074572,8.54576821,158.1,158.06,8.40360664]
[1750091074772,0.28432314,158.09,158.06,8.40360664]
[1750091075192,8.68792978,158.09,158.05,8.40360664]
[1750091076003,0.28432314,158.09,158.05,8.40360664]
[1750091076192,0.28432314,158.09,158.07,8.40360664]
[1750091076394,8.68792978,158.09,158.04,30.54989871]
[1750091076589,8.68792978,158.09,158.05,8.40360664]
[1750091077691,8.68792978,158.09,158.02,22.14909504]
[1750091077891,8.68792978,158.09,158.05,8.40360664]
[1750091078083,8.68792978,158.09,158.04,8.40360664]
[1750091079288,8.68792978,158.09,158.05,6.32711167]
[1750091081209,0.42648471,158.1,158.05,6.32711167]
[1750091081411,0.28432314,158.08,158.05,6.32711167]
[1750091081709,0.28432314,158.08,158.05,8.40360664]
[1750091082007,4.72014906,158.07,158.05,8.40360664]
[1750091082214,4.72014906,158.06,158.05,8.40360664]
[1750091082715,0.28432314,158.08,158.06,6.32671137]
[1750091082909,5.01610145,158.07,158.06,6.32671137]
[1750091084112,0.28432314,158.06,158.03,6.32791242]
[1750091084286,0.28432314,158.06,158.03,14.73151906]
[1750091085311,0.28432314,158.06,158.03,6.32791242]
[1750091085514,0.28432314,158.06,158.03,14.73151906]
[1750091087214,0.28432314,158.07,158.03,14.73151906]
[1750091087517,4.73236193,158.06,158.03,14.73151906]
[1750091087724,0.28432314,158.07,158.03,14.73151906]
[1750091087905,8.68792978,158.07,158.03,14.73151906]
[1750091088097,4.73236193,158.06,158.03,14.73151906]
[1750091088299,8.68792978,158.07,158.03,14.73151906]
[1750091088508,4.73236265,158.06,158.03,14.73151906]
[1750091088717,8.68792978,158.07,158.03,14.73151906]
[1750091088919,4.73215155,158.06,158.03,6.32791242]
[1750091089218,0.14216157,158.02,157.97,6.33031588]